bitfinex-derivatives/quotes_ETHF0:USTF0_20210401
["timestamp","ask_amount","ask_price","bid_price","bid_amount"]
[1617268457718,9.588,1951.9,1951.8,4.21245]
[1617268457919,8.2934,1951.9,1951.8,4.21245]
[1617268458718,8.2934,1951.9,1951.8,2.90695]
[1617268462926,11.20035,1951.9,1951.8,2.90695]
[1617268463926,8.2934,1951.9,1951.8,2.90695]
[1617268471336,8.2934,1951.9,1951.8,4.90695]
[1617268471535,6.498,1951.9,1951.8,4.90695]
[1617268477640,2.9092,1951.9,1951.8,4.90695]
[1617268477840,12.1744,1952.4,1951.8,4.90695]
[1617268478045,5.9047,1952.4,1952.3,77.7456]
[1617268478240,5.9047,1952.4,1952.3,80.7774]
[1617268478442,14.1245,1953.3,1952.3,80.7774]
[1617268479041,14.1245,1953.3,1953.2,4.29295]
[1617268479442,0.14845995,1954.1,1953.2,4.29295]
[1617268479443,0.14845995,1954.1,1953.9,75.5436]
[1617268479642,15.20794065,1954.4,1953.9,76.5763]
[1617268480043,15.0001,1954.4,1953.9,76.5763]
[1617268480842,15.0001,1954.4,1954.0,2.0]
[1617268481046,15.0001,1954.4,1954.3,2.90695]
[1617268481242,0.05942785,1954.7,1954.3,4.09915]
[1617268481445,0.05949149,1955.1,1954.3,4.09915]
[1617268481842,0.05949149,1955.1,1954.4,2.0]
[1617268482044,0.05949149,1955.1,1955.0,73.1828]
[1617268482243,0.05949149,1955.1,1955.0,74.6574]
[1617268482446,0.05949876,1955.2,1955.0,74.6574]
[1617268482847,0.05950336,1955.3,1955.0,74.6574]
[1617268483049,0.05950336,1955.3,1955.2,2.90695]
[1617268483849,0.05950276,1955.4,1955.2,2.90695]
[1617268484149,0.05948813,1955.3,1955.2,2.90695]
[1617268484450,13.8334,1955.5,1955.2,2.90695]
[1617268485051,13.8334,1955.5,1955.4,2.90695]
[1617268485250,13.8334,1955.5,1955.4,4.47695]
[1617268486353,13.8334,1955.5,1955.4,2.90695]
[1617268486954,16.74035,1955.5,1955.4,2.90695]
[1617268487854,16.74035,1955.5,1955.0,73.1828]
[1617268488054,18.06785,1955.5,1954.0,2.0]
[1617268488255,18.06785,1955.5,1953.9,1.0271]
[1617268488456,18.06785,1955.5,1953.5,2.0]
[1617268488858,48.06785,1955.5,1953.5,2.0]
[1617268489058,2.90695,1954.9,1954.7,2.90695]
[1617268489259,4.44405,1954.9,1954.7,2.90695]
[1617268491562,34.44405,1954.9,1951.7,1.1]
[1617268491763,34.44405,1954.9,1953.5,65.3846]
[1617268493164,31.5371,1954.9,1953.8,2.90695]
[1617268494464,30.0,1954.8,1953.8,2.90695]
[1617268495065,2.90695,1953.9,1953.8,2.90695]
[1617268495264,4.30635,1953.9,1953.8,2.90695]
[1617268497165,4.30635,1953.9,1952.8,68.4883]
[1617268497568,34.30635,1953.9,1952.8,68.4883]
[1617268499170,4.40905,1952.9,1952.8,68.4883]
[1617268500769,30.0,1953.5,1952.8,68.4883]
[1617268500971,13.6491,1953.6,1952.8,68.4883]
[1617268501171,13.6491,1953.6,1953.3,2.90695]
[1617268501777,13.6491,1953.6,1953.5,63.5779]
[1617268503177,13.6491,1953.6,1953.5,66.48485]
[1617268503979,13.6491,1953.6,1953.5,2.90695]
[1617268504579,13.6491,1953.6,1953.0,69.776]
[1617268505180,13.6491,1953.6,1953.3,2.90695]
[1617268505579,13.6491,1953.6,1953.0,69.776]
[1617268507080,13.6491,1953.6,1953.2,2.90695]
[1617268507281,13.6491,1953.6,1953.0,69.776]
[1617268508083,13.6491,1953.6,1951.4,1.0]
[1617268508284,13.6491,1953.6,1952.8,0.17]
[1617268509189,2.90695,1952.9,1952.8,0.17]
[1617268509384,4.46675,1952.9,1952.8,0.17]
[1617268511085,34.46675,1952.9,1952.8,0.17]
[1617268512086,4.46675,1952.9,1952.8,0.17]
[1617268513493,34.46675,1952.9,1952.8,0.17]
[1617268515692,34.46675,1952.9,1952.0,60.4563]
[1617268516693,34.46675,1952.9,1951.4,1.0]
[1617268516894,57.8711,1952.7,1951.4,1.0]
[1617268517093,30.0,1952.6,1951.4,1.0]
[1617268518494,30.0,1952.4,1951.4,1.0]
[1617268518693,2.0,1952.3,1951.4,1.0]
[1617268518893,30.0,1952.2,1951.4,1.0]
[1617268519094,32.0,1952.2,1951.4,1.0]
[1617268519294,4.53975,1951.5,1951.4,1.0]
[1617268524800,34.53975,1951.5,1951.4,1.0]
[1617268525999,4.53975,1951.5,1951.4,1.0]
[1617268526201,2.90695,1951.5,1951.4,1.0]
[1617268529303,2.90695,1951.5,1951.4,3.90695]
[1617268531405,2.90695,1951.5,1951.4,1.0]
[1617268532104,30.0,1952.2,1951.4,1.0]
[1617268532306,28.5347,1952.4,1951.5,81.1517]
[1617268533309,28.5347,1952.4,1952.3,2.90695]
[1617268533709,28.5347,1952.4,1951.5,81.1517]
[1617268533909,58.5347,1952.4,1951.5,81.1517]
[1617268534909,58.5347,1952.4,1951.4,1.0]
[1617268535113,59.7895,1952.4,1951.4,1.0]
[1617268535311,2.90695,1951.5,1951.4,1.0]
[1617268535511,4.21655,1951.5,1951.4,1.0]
[1617268537614,34.21655,1951.5,1951.4,1.0]
[1617268538512,4.21655,1951.5,1951.4,1.0]
[1617268538714,2.90695,1951.5,1951.4,1.0]
[1617268539315,2.90695,1951.5,1951.4,73.2532]
[1617268540815,4.90695,1951.5,1951.4,73.2532]
[1617268541016,4.90695,1951.5,1951.4,1.0]
[1617268541215,2.90695,1951.5,1951.4,1.0]
[1617268542318,4.90695,1951.5,1951.4,1.0]
[1617268542518,2.90695,1951.5,1951.4,1.0]
[1617268544425,4.90695,1951.5,1951.4,1.0]
[1617268545823,34.90695,1951.5,1951.4,1.0]
[1617268547723,32.90695,1951.5,1951.4,1.0]
[1617268551424,34.90695,1951.5,1951.4,1.0]
[1617268551825,32.90695,1951.5,1951.4,1.0]
[1617268553328,34.90695,1951.5,1951.4,1.0]
[1617268554830,69.6509,1951.4,1950.0,69.6438]
[1617268555029,32.0,1951.3,1950.0,69.6438]
[1617268555429,32.0,1951.3,1950.2,2.90695]
[1617268556430,32.0,1951.3,1950.0,69.6438]
[1617268557329,32.0,1951.3,1949.0,84.5675]
[1617268557330,32.0,1951.3,1948.4,2.584]
[1617268557530,60.9872,1950.5,1948.4,63.5712]
[1617268557731,32.0,1950.4,1948.4,63.5712]
[1617268558333,29.2639,1950.3,1948.4,63.5712]
[1617268558531,30.0,1950.2,1948.4,63.5712]
[1617268558732,31.2639,1950.3,1948.4,2.584]
[1617268558932,31.2639,1950.3,1949.1,65.3408]
[1617268559133,29.2639,1950.3,1949.1,65.3408]
[1617268559534,29.2639,1950.3,1949.7,2.90695]
[1617268561137,29.2639,1950.3,1950.1,62.7354]
[1617268561336,29.2639,1950.3,1950.1,64.319]
[1617268561536,29.2639,1950.3,1950.2,2.90695]
[1617268561737,14.4401,1950.3,1950.2,2.90695]
[1617268561936,5.1759,1950.3,1950.2,2.90695]
[1617268562135,0.5438,1950.3,1950.2,2.90695]
[1617268563138,0.2134,1950.3,1950.2,2.90695]
[1617268563337,13.8521,1951.4,1950.2,2.90695]
[1617268563540,13.8521,1951.4,1950.1,64.319]
[1617268563541,13.8521,1951.4,1951.0,2.90695]
[1617268565542,2.90695,1951.1,1951.0,2.90695]
[1617268567145,2.90695,1951.1,1950.1,64.319]
[1617268567345,2.90695,1951.1,1950.1,62.7354]
[1617268567545,13.8521,1951.4,1950.5,2.90695]
[1617268567946,43.8521,1951.4,1950.5,2.90695]
[1617268568145,43.8521,1951.4,1950.1,62.7354]
[1617268568345,45.066,1951.4,1950.1,62.7354]
[1617268569544,45.066,1951.4,1950.4,2.90695]
[1617268569745,43.8521,1951.4,1950.4,2.90695]
[1617268571548,43.8521,1951.4,1950.6,2.90695]
[1617268573650,2.90695,1950.7,1950.6,2.90695]
[1617268575152,2.90695,1950.7,1950.1,62.7354]
[1617268575554,45.8521,1951.4,1950.3,2.90695]
[1617268575953,45.8521,1951.4,1950.1,62.7354]
[1617268577658,45.8521,1951.4,1950.2,2.90695]
[1617268579260,43.8521,1951.4,1950.2,2.90695]
[1617268579664,2.90695,1950.3,1950.2,2.90695]
[1617268579862,43.8521,1951.4,1950.2,2.90695]
[1617268581663,43.8521,1951.4,1950.7,2.90695]
[1617268581864,43.8521,1951.4,1950.7,4.18845]
[1617268582863,13.8521,1951.4,1950.7,4.18845]
[1617268583665,2.90695,1950.8,1950.7,4.18845]
[1617268584967,2.90695,1950.8,1950.7,2.90695]
[1617268587067,2.90695,1950.8,1950.1,62.7354]
[1617268587869,43.8521,1951.4,1950.4,2.90695]
[1617268589268,45.8521,1951.4,1950.4,2.90695]
[1617268589771,2.90695,1950.5,1950.4,2.90695]
[1617268597979,2.90695,1950.5,1950.1,62.7354]
[1617268598178,2.90695,1950.5,1949.5,2.584]
[1617268598379,2.90695,1950.5,1949.7,68.2731]
[1617268599882,70.28793089,1951.0,1950.2,2.90695]
[1617268600180,70.31758304,1951.0,1950.2,2.90695]
[1617268600483,0.01482285,1950.9,1950.2,2.90695]
[1617268600883,71.67995215,1951.0,1950.2,2.90695]
[1617268600884,71.66511069,1951.0,1950.2,2.90695]
[1617268601883,2.90695,1950.3,1950.2,2.90695]
[1617268605495,2.90695,1950.3,1949.5,2.584]
[1617268605697,60.1353,1950.1,1949.5,2.584]
[1617268605895,2.90695,1949.6,1949.5,2.584]
[1617268606096,13.90270658,1950.7,1949.6,70.5066]
[1617268606295,13.90270658,1950.7,1949.6,71.7966]
[1617268607095,13.8879,1950.7,1949.6,71.7966]
[1617268607495,30.0,1950.6,1949.5,2.584]
[1617268607696,32.0,1950.6,1949.3,2.90695]
[1617268607895,2.90695,1949.4,1949.3,2.90695]
[1617268608096,2.90695,1949.4,1948.4,2.584]
[1617268609896,74.9517,1950.0,1949.2,2.90695]
[1617268610098,1.0379,1950.1,1949.2,2.90695]
[1617268611899,2.90695,1950.1,1949.5,2.90695]
[1617268612499,2.90695,1950.1,1949.5,4.52585]
[1617268613100,2.90695,1950.1,1949.7,77.4856]
[1617268613801,14.1429,1950.5,1950.0,2.90695]
[1617268615106,14.1429,1950.5,1950.0,4.33695]
[1617268615903,14.1429,1950.5,1950.4,3.91115]
[1617268617908,17.04985,1950.5,1950.4,3.91115]
[1617268620211,2.90695,1950.5,1950.4,3.91115]
[1617268620408,13.8879,1950.7,1950.4,3.91115]
[1617268620608,13.8879,1950.7,1950.5,58.9715]
[1617268621911,13.8879,1950.7,1950.6,2.90695]
[1617268629023,17.96025,1950.8,1950.6,2.90695]
[1617268629625,14.48983175,1951.6,1950.6,2.90695]
[1617268630026,14.48983175,1951.6,1951.3,2.90695]
[1617268630226,14.48983175,1951.6,1951.3,4.12815]
[1617268630426,14.475,1951.6,1951.3,4.12815]
[1617268632028,14.475,1951.6,1951.5,2.90695]
[1617268633930,13.7355,1951.8,1951.5,2.90695]
[1617268634131,2.90695,1951.9,1951.5,2.90695]
[1617268634531,0.01487257,1952.1,1951.5,2.90695]
[1617268634731,0.05949029,1952.3,1951.5,2.90695]
[1617268634732,0.01487714,1952.3,1951.5,2.90695]
[1617268635534,14.8769,1952.4,1951.9,81.406]
[1617268636132,14.8769,1952.4,1952.1,2.90695]
[1617268637337,14.89180834,1952.4,1952.1,2.90695]
[1617268638134,2.90695,1952.2,1952.1,2.90695]
[1617268641745,4.48555,1952.2,1952.1,2.90695]
[1617268643446,4.48555,1952.2,1951.4,57.8849]
[1617268644048,2.90695,1951.5,1951.4,57.8849]
[1617268644249,4.10955,1951.5,1951.3,2.90695]
[1617268644848,4.10955,1951.5,1951.1,2.584]
[1617268645852,77.1653,1951.9,1951.1,2.584]
[1617268646053,77.1653,1951.9,1951.8,2.90695]
[1617268646251,0.01490166,1952.1,1951.8,2.90695]
[1617268646455,0.01490603,1952.3,1951.8,2.90695]
[1617268646853,13.75480166,1952.4,1951.8,2.90695]
[1617268647253,13.75480166,1952.4,1951.6,71.2467]
[1617268648156,13.75480166,1952.4,1951.7,2.90695]
[1617268648555,13.7399,1952.4,1951.7,2.90695]
[1617268649856,13.7399,1952.4,1951.7,4.12785]
[1617268650254,13.7399,1952.4,1951.9,2.90695]
[1617268652158,2.90695,1952.0,1951.9,2.90695]
[1617268652360,3.93185,1952.0,1951.9,2.90695]
[1617268652561,2.90695,1952.0,1951.9,2.90695]
[1617268652758,4.25785,1952.0,1951.1,2.584]
[1617268652958,69.7808,1951.9,1951.1,2.584]
[1617268654260,2.90695,1951.2,1951.1,2.584]
[1617268658469,82.61805,1951.2,1951.1,2.584]
[1617268660070,82.61805,1951.2,1950.4,1.0]
[1617268660270,4.30605,1950.5,1950.4,1.0]
[1617268662774,2.90695,1950.5,1950.4,1.0]
[1617268662974,109.0017,1951.2,1950.4,1.0]
[1617268664276,2.90695,1950.5,1950.4,1.0]
[1617268668979,4.40375,1950.5,1950.4,1.0]
[1617268678791,2.90695,1950.5,1950.4,1.0]
[1617268679593,109.0017,1951.2,1950.4,1.0]
[1617268680597,2.90695,1950.5,1950.4,1.0]
[1617268684500,4.90695,1950.5,1950.4,1.0]
[1617268685304,4.90695,1950.5,1949.5,5.49095]
[1617268685305,34.90695,1950.5,1949.5,5.49095]
[1617268685502,34.90695,1950.5,1949.5,2.90695]
[1617268686604,2.90695,1949.6,1949.5,2.90695]
[1617268686806,4.54665,1949.6,1949.5,2.90695]
[1617268687608,4.54665,1949.6,1949.1,75.1496]
[1617268688208,4.54665,1949.6,1948.5,7.773]
[1617268688209,6.54665,1949.6,1948.5,7.773]
[1617268688408,57.5903,1949.3,1948.5,7.773]
[1617268688607,60.49725,1949.3,1949.1,2.90695]
[1617268690008,2.90695,1949.3,1949.1,2.90695]
[1617268690607,2.90695,1949.3,1948.6,2.90695]
[1617268690807,32.90695,1949.3,1948.6,2.90695]
[1617268691207,32.90695,1949.3,1947.7,2.584]
[1617268691410,2.90695,1949.3,1947.7,2.584]
[1617268692609,17.8815,1949.6,1948.7,2.90695]
[1617268693114,15.8815,1949.6,1948.7,2.90695]
[1617268693914,17.8815,1949.6,1948.7,2.90695]
[1617268694608,2.90695,1948.8,1948.7,2.90695]
[1617268697213,4.01215,1948.8,1948.7,2.90695]
[1617268698814,2.90695,1948.8,1948.7,2.90695]
[1617268702019,2.90695,1948.8,1947.7,2.584]
[1617268702620,1.4592,1948.9,1948.0,2.90695]
[1617268702819,1.4207,1949.3,1948.0,2.90695]
[1617268704722,2.90695,1948.1,1948.0,2.90695]
[1617268705723,2.90695,1948.1,1947.7,2.584]
[1617268705922,2.90695,1948.1,1947.3,5.189]
[1617268706723,1.094,1948.2,1947.5,2.90695]
[1617268707124,1.094,1948.2,1946.9,2.584]
[1617268708724,1.094,1948.2,1947.0,2.90695]
[1617268710730,4.13505,1947.1,1945.5,4.584]
[1617268712132,2.90695,1947.1,1945.5,4.584]
[1617268712733,2.90695,1947.1,1947.0,2.90695]
[1617268713333,14.5681,1947.9,1947.0,2.90695]
[1617268714735,14.5681,1947.9,1947.5,2.90695]
[1617268716739,14.5681,1947.9,1947.8,2.90695]
[1617268718743,17.47505,1947.9,1947.8,2.90695]
[1617268719542,14.5681,1947.9,1947.8,2.90695]
[1617268719742,28.6943,1948.1,1947.8,2.90695]
[1617268720142,14.2161,1948.1,1947.8,2.90695]
[1617268720744,14.2161,1948.1,1948.0,2.90695]
[1617268720943,14.2161,1948.1,1948.0,4.03185]
[1617268723044,14.2161,1948.1,1948.0,2.90695]
[1617268724746,17.12305,1948.1,1948.0,2.90695]
[1617268724946,18.48865,1948.1,1946.9,5.189]
[1617268726446,2.0,1948.0,1946.4,2.584]
[1617268726846,2.0,1948.0,1947.1,2.90695]
[1617268728848,2.90695,1947.2,1947.1,2.90695]
[1617268729851,1.0403,1947.9,1947.1,2.90695]
[1617268730051,14.2161,1948.1,1947.1,2.90695]
[1617268730852,14.2161,1948.1,1947.8,1.145]
[1617268732051,14.2161,1948.1,1946.9,1.0073]
[1617268732251,14.2161,1948.1,1946.4,4.584]
[1617268732451,14.2161,1948.1,1946.4,2.584]
[1617268732853,14.2161,1948.1,1947.2,2.90695]
[1617268733655,44.2161,1948.1,1947.2,2.90695]
[1617268734857,2.90695,1947.3,1947.2,2.90695]
[1617268737156,2.90695,1947.3,1946.4,2.584]
[1617268737357,2.90695,1947.3,1945.5,4.584]
[1617268738857,44.2263,1947.5,1946.5,2.90695]
[1617268739458,44.2263,1947.5,1945.5,2.0]
[1617268739655,44.2263,1947.5,1944.2,30.0]
[1617268739858,46.2263,1947.5,1944.2,30.0]
[1617268740860,46.2263,1947.5,1945.6,2.90695]
[1617268742961,2.90695,1945.7,1945.6,2.90695]
[1617268743563,1.2137,1947.2,1945.6,2.90695]
[1617268743764,46.2263,1947.5,1945.6,2.90695]
[1617268743964,14.2263,1947.5,1945.6,6.54485]
[1617268744967,14.2263,1947.5,1947.0,2.90695]
[1617268745165,14.2263,1947.5,1947.0,4.48025]
[1617268746869,17.13325,1947.5,1947.4,2.90695]
[1617268747068,17.13325,1947.5,1947.4,4.40405]
[1617268749469,14.2263,1947.5,1947.4,4.40405]
[1617268749869,15.0892,1947.9,1947.4,4.40405]
[1617268751072,15.0892,1947.9,1947.8,3.97495]
[1617268753373,15.0892,1947.9,1947.8,2.90695]
[1617268755076,15.0892,1947.9,1947.6,2.90695]
[1617268757078,17.99615,1947.9,1947.8,2.90695]
[1617268757278,17.99615,1947.9,1947.8,4.04775]
[1617268757679,2.90695,1947.9,1947.8,4.04775]
[1617268758279,2.90695,1947.9,1947.8,2.90695]
[1617268758479,2.90695,1947.9,1947.8,4.31435]
[1617268761081,2.90695,1947.9,1947.8,2.90695]
[1617268761481,2.90695,1947.9,1947.2,1.55]
[1617268762388,14.2161,1948.1,1947.2,1.55]
[1617268762586,13.8098,1948.8,1947.2,1.55]
[1617268763184,13.8098,1948.8,1948.5,2.90695]
[1617268763484,13.8098,1948.8,1948.5,4.33435]
[1617268765086,13.8098,1948.8,1948.7,2.90695]
[1617268767084,16.71675,1948.8,1948.7,2.90695]
[1617268768387,16.71675,1948.8,1948.5,1.4274]
[1617268768587,16.71675,1948.8,1947.4,1.0173]
[1617268768787,16.71675,1948.8,1947.0,34.584]
[1617268769189,13.8098,1948.8,1948.7,4.51215]
[1617268769389,13.7699,1949.1,1948.7,4.51215]
[1617268770690,13.7699,1949.1,1948.7,2.90695]
[1617268771093,2.90695,1948.8,1948.7,2.90695]
[1617268771292,2.90695,1948.8,1947.2,1.3043]
[1617268771794,2.90695,1948.8,1947.0,5.684]
[1617268772594,2.90695,1948.8,1947.0,4.584]
[1617268772797,32.90695,1948.8,1947.0,2.584]
[1617268772994,2.0,1948.7,1947.0,2.584]
[1617268773195,33.2691,1948.7,1947.6,2.90695]
[1617268775198,2.90695,1947.7,1947.6,2.90695]
[1617268775399,4.02425,1947.7,1947.6,2.90695]
[1617268779099,2.90695,1947.7,1947.6,2.90695]
[1617268785903,1.0383,1948.5,1947.6,2.90695]
[1617268786806,1.05304561,1948.5,1946.7,5.9225]
[1617268787006,2.38804561,1948.5,1946.7,2.584]
[1617268787206,32.38804561,1948.5,1946.7,2.584]
[1617268787406,32.38804561,1948.5,1947.1,2.90695]
[1617268787407,0.0147419,1948.4,1947.1,2.90695]
[1617268787805,0.0147419,1948.4,1946.7,2.584]
[1617268788210,0.01473909,1948.3,1946.7,2.584]
[1617268788611,0.01473989,1948.4,1946.7,2.584]
[1617268788810,0.01473989,1948.4,1946.7,3.7801]
[1617268789410,0.01473989,1948.4,1947.0,2.90695]
[1617268789810,0.01472435,1948.3,1947.0,2.90695]
[1617268791110,0.01471919,1948.4,1947.0,2.90695]
[1617268791311,2.90695,1947.7,1947.2,2.90695]
[1617268793414,0.01471919,1948.4,1947.6,2.90695]
[1617268793612,0.01471919,1948.4,1947.6,3.99445]
[1617268793814,0.01470806,1948.5,1947.6,3.99445]
[1617268795114,0.02941611,1948.6,1947.6,3.99445]
[1617268795315,0.01470594,1948.7,1948.3,2.90695]
[1617268795515,14.79021085,1948.8,1948.3,4.29895]
[1617268796917,14.7755,1948.8,1948.3,4.29895]
[1617268797317,2.90695,1948.4,1948.3,4.29895]
[1617268797517,14.7755,1948.8,1948.3,4.29895]
[1617268798319,13.7002,1949.0,1948.3,4.29895]
[1617268799321,16.60715,1949.0,1948.9,2.90695]
[1617268799520,16.60715,1949.0,1948.9,4.08385]
[1617268800724,16.60715,1949.0,1947.6,3.6715]
[1617268801025,16.60715,1949.0,1947.6,5.6715]
[1617268801425,13.7002,1949.0,1948.3,2.90695]
[1617268801625,13.7002,1949.0,1948.3,4.05645]
[1617268802723,13.7002,1949.0,1948.4,2.0]
[1617268803124,13.7699,1949.1,1948.4,2.0]
[1617268803524,13.7699,1949.1,1949.0,4.24215]
[1617268807128,13.7699,1949.1,1949.0,2.90695]
[1617268810031,2.90695,1949.2,1949.0,2.90695]
[1617268813430,2.90695,1949.4,1949.0,2.90695]
[1617268814530,28.73461058,1950.2,1949.0,2.90695]
[1617268815331,28.7199,1950.2,1949.0,2.90695]
[1617268815532,28.7199,1950.2,1949.8,2.90695]
[1617268815734,28.7199,1950.2,1949.8,4.09855]
[1617268817534,2.90695,1949.9,1949.8,2.90695]
[1617268825943,2.90695,1949.9,1948.5,2.0]
[1617268826143,2.90695,1949.9,1946.3,36.2162]
[1617268826343,2.0,1949.8,1947.5,3.684]
[1617268826543,1.5745,1949.8,1947.6,2.0]
[1617268826742,1.5745,1949.8,1947.7,1.1]
[1617268827542,1.5745,1949.8,1949.0,2.90695]
[1617268828542,2.0,1950.1,1949.0,2.90695]
[1617268829542,2.90695,1949.1,1949.0,2.90695]
[1617268830844,28.7199,1950.2,1949.0,2.90695]
[1617268831246,0.01475314,1950.0,1949.0,2.90695]
[1617268831644,0.01475511,1950.1,1949.4,2.90695]
[1617268831844,28.73465071,1950.2,1949.4,2.90695]
[1617268833045,28.73465071,1950.2,1948.2,2.0]
[1617268833244,29.79665071,1950.2,1948.2,2.0]
[1617268833445,0.01475169,1950.0,1948.2,2.0]
[1617268833645,0.01475169,1950.0,1949.2,2.90695]
[1617268835646,2.90695,1949.3,1949.2,2.90695]
[1617268835847,4.50145,1949.3,1949.2,2.90695]
[1617268836045,4.50145,1949.3,1947.9,2.0]
[1617268837450,4.50145,1949.3,1947.7,2.0]
[1617268837649,1.5945,1949.3,1948.4,2.90695]
[1617268839150,1.5945,1949.3,1946.6,3.684]
[1617268839551,1.60923642,1949.3,1946.7,2.0]
[1617268839752,13.6896,1949.2,1948.1,2.90695]
[1617268839953,28.7334,1949.2,1948.1,2.90695]
[1617268840457,30.0,1949.1,1946.7,2.0]
[1617268840659,44.3598,1949.1,1946.7,2.0]
[1617268840855,2.0,1949.0,1946.7,2.0]
[1617268841061,32.0,1949.0,1946.7,2.0]
[1617268841257,32.01472471,1949.0,1946.7,2.0]
[1617268841658,32.01472471,1949.0,1947.6,2.90695]
[1617268842057,0.01472296,1948.9,1947.6,2.90695]
[1617268842258,1.56432296,1948.9,1947.6,2.90695]
[1617268843660,2.90695,1947.7,1947.6,2.90695]
[1617268843860,4.16485,1947.7,1947.6,2.90695]
[1617268845161,2.90695,1947.7,1947.6,2.90695]
[1617268847362,1.5496,1948.9,1947.6,2.90695]
[1617268847561,14.37456349,1949.1,1947.6,2.90695]
[1617268847761,14.37456349,1949.1,1948.0,2.90695]
[1617268848561,14.3598,1949.1,1948.0,2.90695]
[1617268849763,14.3598,1949.1,1948.0,1.6355]
[1617268851668,14.3598,1949.1,1948.5,2.90695]
[1617268852968,2.0,1949.0,1947.6,2.584]
[1617268853168,45.7362,1949.1,1947.6,2.584]
[1617268853367,47.7362,1949.1,1946.5,4.584]
[1617268853572,47.75098135,1949.1,1946.5,2.584]
[1617268853769,0.0147706,1948.8,1947.6,2.90695]
[1617268854170,0.01477148,1948.7,1947.6,2.90695]
[1617268854369,1.25947148,1948.7,1947.6,2.90695]
[1617268854571,0.04431616,1948.6,1947.6,2.90695]
[1617268854770,0.04431616,1948.6,1946.5,2.584]
[1617268854970,0.01477637,1948.5,1946.5,2.584]
[1617268855170,1.05597637,1948.5,1946.5,2.584]
[1617268855370,0.01477481,1948.4,1946.5,2.584]
[1617268855771,0.01477481,1948.4,1946.8,2.90695]
[1617268855972,13.84537481,1948.4,1946.8,2.90695]
[1617268856170,2.0,1948.3,1946.8,2.90695]
[1617268856371,3.28470517,1948.3,1946.8,2.90695]
[1617268857073,17.07120517,1948.3,1946.8,2.90695]
[1617268857873,17.07120517,1948.3,1947.1,2.90695]
[1617268858474,0.01482708,1948.2,1947.1,2.90695]
[1617268859277,17.07123643,1948.3,1947.1,2.90695]
[1617268859877,2.90695,1947.2,1947.1,2.90695]
[1617268862477,0.01487116,1948.2,1947.1,2.90695]
[1617268862678,13.80137292,1948.3,1947.1,4.02965]
[1617268863078,13.7865,1948.3,1947.1,4.02965]
[1617268863878,13.7865,1948.3,1947.6,2.90695]
[1617268864477,13.80137875,1948.3,1947.6,2.90695]
[1617268864783,2.0,1948.2,1947.6,2.90695]
[1617268865179,3.3619,1948.2,1946.3,7.773]
[1617268865382,1.3619,1948.2,1946.3,7.773]
[1617268865779,1.3619,1948.2,1947.2,2.90695]
[1617268865980,1.3767837,1948.2,1947.2,2.90695]
[1617268866482,3.3767837,1948.2,1947.2,2.90695]
[1617268866781,0.0148837,1948.2,1947.2,2.90695]
[1617268867181,13.81626739,1948.3,1947.2,2.90695]
[1617268867182,13.80140797,1948.3,1947.2,2.90695]
[1617268867782,13.80140797,1948.3,1947.9,2.90695]
[1617268867985,13.7865,1948.3,1947.9,2.90695]
[1617268868182,13.7865,1948.3,1947.7,1.3089]
[1617268868784,43.7865,1948.3,1947.7,1.3089]
[1617268868983,43.7865,1948.3,1947.0,3.9787]
[1617268869184,46.28692073,1948.3,1947.0,2.584]
[1617268869586,0.0149211,1948.2,1947.0,2.584]
[1617268869784,0.0149211,1948.2,1947.1,2.90695]
[1617268870384,0.01491784,1948.1,1947.1,2.90695]
[1617268870787,2.01491251,1948.2,1947.1,2.90695]
[1617268871184,0.01492172,1948.1,1947.1,2.90695]
[1617268871984,2.90695,1947.2,1947.1,2.90695]
[1617268876293,3.93835,1947.2,1947.1,2.90695]
[1617268876493,2.90695,1947.2,1947.1,2.90695]
[1617268878696,2.90695,1947.2,1945.2,3.6156]
[1617268878894,2.90695,1947.2,1945.3,2.0]
[1617268880095,2.90695,1947.0,1946.9,2.90695]
[1617268882104,29.0252,1947.3,1946.9,2.90695]
[1617268884109,29.0252,1947.3,1947.2,2.90695]
[1617268888211,31.93215,1947.3,1947.2,2.90695]
[1617268888812,31.93215,1947.3,1946.5,2.584]
[1617268889212,33.06605,1947.3,1946.5,2.584]
[1617268890211,30.1591,1947.3,1946.8,2.90695]
[1617268892114,2.90695,1946.9,1946.8,2.90695]
[1617268893417,4.24505,1946.9,1946.8,2.90695]
[1617268894918,4.24505,1946.9,1945.7,4.584]
[1617268895719,4.24505,1946.9,1945.7,2.584]
[1617268896218,1.3381,1946.9,1946.0,2.90695]
[1617268897421,1.3381,1946.9,1945.7,2.584]
[1617268897622,1.3381,1946.9,1944.8,4.584]
[1617268898222,1.3381,1946.9,1945.9,2.90695]
[1617268898623,63.1828,1947.3,1944.8,4.584]
[1617268898823,62.1591,1947.3,1944.8,4.584]
[1617268899022,1.2682,1946.9,1944.8,4.584]
[1617268900224,1.2682,1946.9,1945.9,2.90695]
[1617268900626,1.2682,1946.9,1944.8,2.584]
[1617268902225,1.2682,1946.9,1945.8,2.90695]
[1617268904232,63.1777,1947.3,1946.2,2.90695]
[1617268904433,63.1777,1947.3,1944.9,2.0]
[1617268906236,63.1777,1947.3,1946.0,2.90695]